Workbook

Sheet Questionnaire
A6: Determine Your Investment Risk Profile | M6: Scoring Scheme
A8: Answer the following 15 questions to calculate your risk profile score. This score will determine an asset allocation that is appropriate for your risk perferences.
A9: After answering the questions, just click the button at the bottom to see your recommended asset allocation
A11: 1. What is your total annual income before tax (including investment dividends but not including employment bonuses)? | L11: Question | O11: Score | P11: Choice
L12: 1 | M12: Less than Rs.100,000 | O12: 0 | P12: 1
M13: Rs.100,000 to Rs.199,999 | O13: 2
I14: Score | J14: =INDEX(O12:O16,P12) -> 0 | M14: Rs.200,000 to Rs.499,999 | O14: 4
M15: Rs.500,000 to Rs.1,000,000 | O15: 6
A16: 2. Select your sources of income (tick all that apply) | M16: More than Rs.1,000,000 | O16: 8
L18: 2 | M18: FALSE | N18: Employment | O18: 1
M19: FALSE | N19: Business | O19: 1
M20: FALSE | N20: Pension | O20: 1
M21: FALSE | N21: Other Retirement Sources | O21: 1
I22: Score | J22: =SUM(M18:M25*O18:O25) -> 0 | M22: FALSE | N22: Investment | O22: 1
M23: FALSE | N23: Trust Income | O23: 1
A24: 3. What is the value of your liquid (or investable) assets? This includes cash plus any easily sold investments like Gold, Bond and Stocks | M24: FALSE | N24: Real Estate Income | O24: 1
M25: FALSE | N25: Other | O25: 1
L27: 3 | M27: Less than Rs.500,000 | O27: 1 | P27: 1
I28: Score | J28: =INDEX(O27:O31,P27) -> 1 | M28: Rs.500,000 to Rs.999,999 | O28: 2
M29: Rs.1,000,000 to Rs.4,999,999 | O29: 3
A30: 4. What yearly income do you want from this investment portfolio? | M30: Rs.5,000,000 to Rs.9,999,999 | O30: 4
M31: More than Rs.10,000,000 | O31: 5
I33: Score | J33: =INDEX(O33:O39,P33) -> 6 | L33: 4 | M33: None | O33: 6 | P33: 1
M34: 1% to 2% of portfolio value | O34: 5
A35: 5. How long do you intend to hold this investment portfolio? | M35: 3% to 4% of portfolio value | O35: 4
M36: 5% to 6% of portfolio value | O36: 3
M37: 7% to 8% of portfolio value | O37: 2
I38: Score | J38: =INDEX(O41:O44,P41) -> 0 | M38: 9% to 10% of portfolio value | O38: 1
M39: 10% or more of portfolio value | O39: 0
A40: 6. What would you do if your investment portfolio fell in value by one-fifth (20%) over the course of 12 months.
L41: 5 | M41: 1 to 2 years | O41: 0 | P41: 1
M42: 3 to 5 years | O42: 3
I43: Score | J43: =INDEX(O46:O49,P46) -> 1 | M43: 6 to 10 years | O43: 4
M44: More than 10 years | O44: 9
A45: 7. What characteristics would you prefer your investments to have?
L46: 6 | M46: Sell your investment immediately | O46: 1 | P46: 1
M47: Sell some of the stock | O47: 3
I48: Score | J48: =INDEX(O52:O56,P52) -> 0 | M48: Do nothing | O48: 7
M49: Buy more stock while prices are low | O49: 10
A50: 8. Consider these six investment portfolios. Which one would you prefer to own?
L52: 7 | M52: Stability and protection against loss but with a low return | O52: 0 | P52: 1
I53: Score | J53: =INDEX(O58:O63,P58) -> 14 | M53: A relatively small chance of short-term loss with some growth potential long term | O53: 2
M54: Moderate short-term loss, with moderate growth potential long term | O54: 2
A55: 9. What do you want this investment portfolio to do? | M55: A greater potential for short-term losses with higher potential for long-term growth | O55: 3
M56: High capital growth but at the risk of short term loss | O56: 4
L58: 8 | M58: Investment A | O58: 14 | P58: 1
I59: Score | J59: =INDEX(O65:O70,P65) -> 0 | M59: Investment B | O59: 11
M60: Investment C | O60: 9
A61: 10. What volatility (or risk) are you prepared to tolerate? | M61: Investment D | O61: 7
M62: Investment E | O62: 4
M63: Investment F | O63: 0
I65: Score | J65: =INDEX(O72:O75,P72) -> 0 | L65: 9 | M65: Preserve capital | O65: 0 | P65: 1
M66: Generate an income stream | O66: 3
A67: 11. In the next five years, do you want to sell some of this investment portfolio to realize cash? | M67: Generate income with some capital appreciation | O67: 5
M68: Provide both capital appreciation and current income | O68: 7
M69: Enhance capital appreciation with some current income | O69: 9
M70: Provide long-term maximum growth | O70: 11
I71: Score | J71: =INDEX(O77:O80,P77) -> 9
L72: 10 | M72: You require positive returns each year | O72: 0 | P72: 1
A73: 12. What kind of investments do you currently own, or would prefer to own? | M73: You can tolerate negative returns 1 in every 7 years | O73: 3
M74: You can tolerate negative returns 1 in every 5 years | O74: 5
M75: You can tolerate negative returns 1 in every 3 years | O75: 7
I77: Score | J77: =INDEX(O82:O87,P82) -> 0 | L77: 11 | M77: No, you will not need to liquidate any portion of this portfolio within 5 years | O77: 9 | P77: 1
M78: Yes, between 0% and 10% of the portfolio over the next 5 years | O78: 6
A79: 13. What anual return do you want from this investment portfolio, given a time horizon of 10 years. | M79: Yes, between 11% and 20% of the portfolio over the next 5 years | O79: 3
M80: Yes, more than 20% of the portfolio over the next 5 years | O80: 0
L82: 12 | M82: Mainly money market securities (e.g., cash, certificates of deposit) | O82: 0 | P82: 1
I83: Score | J83: =INDEX(O89:O93,P89) -> 0 | M83: Mainly fixed-income securities (e.g., bonds, preferred shares) | O83: 1
M84: Mainly fixed-income securities with some equity securities | O84: 1
A85: 14. Who do you normally get investment advice from? Select all that apply. | M85: Slightly heavier weighting in equities than fixed-income | O85: 2
M86: Mainly blue-chip equities with some fixed income | O86: 2
M87: Mainly aggressive equities with some fixed income | O87: 3
L89: 13 | M89: 2% to 4% | O89: 0 | P89: 1
M90: 4% to 6% | O90: 3
I91: Score | J91: =SUM(P95:P102*O95:O102) -> 0 | M91: 6% to 8% | O91: 5
M92: 8% to 10% | O92: 7
M93: More than 10% | O93: 9
A94: 15. How would you rate your current skill in managing investments?
L95: 14 | M95: Accountant | O95: 0 | P95: FALSE
M96: Broker | O96: 0 | P96: FALSE
M97: Portfolio Manager | O97: 0 | P97: FALSE
I98: Score | J98: =INDEX(O104:O107,P104) -> 0 | M98: Private Banker | O98: 0 | P98: FALSE
M99: Insurance Agent | O99: 0 | P99: FALSE
I100: Total Score | J100: =J14+J22+J28+J33+J38+J43+J48+J53+J59+J65+J71+J77+J83+J91+J98 -> 31 | M100: Financial Planner | O100: 0 | P100: FALSE
M101: Friends | O101: 0 | P101: FALSE
M102: Saral Gyan Capital Services | O102: 0 | P102: FALSE
L104: 15 | M104: Low | O104: 0 | P104: 1
M105: Moderate | O105: 1
M106: High | O106: 2
M107: Advanced | O107: 3

Sheet Asset Allocation Recommendation
C2: =B53 -> Income
A15: Saral Gyan Recommended Investment Split
A16: Score: | B16: =TEXT(B52,"#")&"/100" -> 31/100
A17: Recommended Style: | B17: =B53 -> Income
B19: Cash | C19: Bonds | D19: Equities
A20: Overall Asset Allocation: | B20: =Allocation -> 10% | C20: 65% | D20: 25%
B22: High-Yield | C22: Long-term | D22: Short to Intermediate | E22: International
A23: Bond Allocation: | B23: =BondAllocation -> 18.5% | C23: 38.5% | D23: 38.5% | E23: 4.6%
B25: Large Cap | C25: Mid Cap | D25: Small Cap | E25: Micro Cap
A26: Stock Allocation: | B26: =StockAllocation -> 100.0% | C26: 0.0% | D26: 0.0% | E26: 0.0%
A52: Score | B52: =Score -> 31
A53: Style | B53: =VLOOKUP(B52,A57:F62,3) -> Income
A54: Title | B54: ="Your Investment Style is:"&CHAR(13)&B53 -> Your Investment Style is: Income
A55: Row Ref | B55: =VLOOKUP(B52,A57:F62,2) -> 2
A56: Score | C56: Style | D56: Cash | E56: Bonds | F56: Equities | H56: High Yield | I56: Long-term | J56: Intermed/Short | K56: International | M56: Large Cap | N56: Mid Cap | O56: Small Cap | P56: Micro Cap
A57: 0 | B57: 1 | C57: Stable | D57: 60% | E57: 35% | F57: 0% | H57: 0% | I57: 0% | J57: 100% | K57: 0% | M57: 0% | N57: 0% | O57: 0% | P57: 0%
A58: 17 | B58: 2 | C58: Income | D58: 10% | E58: 65% | F58: 25% | H58: =0.12/E58 -> 18% | I58: =0.25/E58 -> 38% | J58: =0.25/E58 -> 38% | K58: =0.03/E58 -> 5% | M58: 100% | N58: 0% | O58: 0% | P58: 0%
A59: 34 | B59: 3 | C59: Income with Moderate Long-term Growth | D59: 5% | E59: 45% | F59: 50% | H59: =0.07/E59 -> 16% | I59: =0.2/E59 -> 44% | J59: =0.15/E59 -> 33% | K59: =0.03/E59 -> 7% | M59: =0.35/F59 -> 70% | N59: =0.1/F59 -> 20% | O59: =0.025/F59 -> 5% | P59: =0.025/F59 -> 5%
A60: 50 | B60: 4 | C60: Long-Term Growth with Income | D60: 5% | E60: 30% | F60: 65% | H60: =0.07/E60 -> 23% | I60: =0.15/E60 -> 50% | J60: =0.05/E60 -> 17% | K60: =0.03/E60 -> 10% | M60: =0.425/F60 -> 65% | N60: =0.14/F60 -> 22% | O60: =0.045/F60 -> 7% | P60: =0.04/F60 -> 6%
A61: 68 | B61: 5 | C61: Long-Term Growth with Moderate Income | D61: 5% | E61: 15% | F61: 80% | H61: =0.07/E61 -> 47% | I61: =0.05/E61 -> 33% | J61: 0% | K61: =0.03/E61 -> 20% | M61: =0.48/F61 -> 60% | N61: =0.2/F61 -> 25% | O61: =0.075/F61 -> 9% | P61: =0.045/F61 -> 6%
A62: 85 | B62: 6 | C62: Long-Term Maximium Growth | D62: 0% | E62: 10% | F62: 90% | H62: =0.07/E62 -> 70% | I62: 0% | J62: 0% | K62: =0.03/E62 -> 30% | M62: =0.45/F62 -> 50% | N62: =0.25/F62 -> 28% | O62: =0.11/F62 -> 12% | P62: =0.09/F62 -> 10%

Sheet Investment Choices
A1: Look at the investment choices below and decide which you would be most comfortable with over the long-term.
A2: Investment A is the riskiest, but has the highest long-term expected return, Investment F is the least risky, but has the lowest expected return.
A4: Click the picture to return to the questionnaire
